[Event "December 19 Late 2023"]
[Site "https://www.chess.com"]
[Date "2023.12.19"]
[Round "3"]
[White "Novak, Ratko"]
[Black "Khlebovich, Alexander"]
[Result "1/2-1/2"]
[Board "35"]
[TimeControl "180+1"]
[WhiteFideId "14511827"]
[BlackFideId "4169123"]
[WhiteElo "2036"]
[BlackElo "2334"]
[WhiteTeam "CRO"]
[BlackTeam "RUS"]
[WhiteClock "0:00:27"]
[BlackClock "0:00:10"]

1. d4 {[%clk 0:02:59]}  Nf6 {[%clk 0:02:59]} 2. c4 {[%clk 0:03:00]}  g6 {[%clk 0:03:00]} 3. Nc3 {[%clk 0:02:59]}  d5 {[%clk 0:03:00]} 4. f3 {[%clk 0:03:00]}  Bg7 {[%clk 0:02:58]} 5. e4 {[%clk 0:03:00]}  dxe4 {[%clk 0:02:58]} 6. fxe4 {[%clk 0:03:00]}  O-O {[%clk 0:02:54]} 7. Be2 {[%clk 0:02:59]}  c5 {[%clk 0:02:54]} 8. d5 {[%clk 0:02:59]}  e6 {[%clk 0:02:49]} 9. Bg5 {[%clk 0:02:59]}  h6 {[%clk 0:02:46]} 10. Be3 {[%clk 0:02:59]}  exd5 {[%clk 0:02:44]} 11. exd5 {[%clk 0:02:56]}  Re8 {[%clk 0:02:32]} 12. Bxc5 {[%clk 0:02:54]}  Na6 {[%clk 0:02:27]} 13. Bd4 {[%clk 0:02:50]}  Bg4 {[%clk 0:02:13]} 14. Qd2 {[%clk 0:02:45]}  Rc8 {[%clk 0:01:59]} 15. b3 {[%clk 0:02:44]}  b5 {[%clk 0:01:41]} 16. Nf3 {[%clk 0:02:02]}  Bxf3 {[%clk 0:01:26]} 17. gxf3 {[%clk 0:02:01]}  bxc4 {[%clk 0:01:26]} 18. O-O {[%clk 0:02:01]}  Rxe2 {[%clk 0:01:11]} 19. Qxe2 {[%clk 0:01:51]}  Nxd5 {[%clk 0:01:06]} 20. Bxg7 {[%clk 0:01:47]}  Kxg7 {[%clk 0:01:01]} 21. Qe5+ {[%clk 0:01:43]}  Nf6 {[%clk 0:01:00]} 22. Ne4 {[%clk 0:01:43]}  Qb6+ {[%clk 0:00:59]} 23. Kh1 {[%clk 0:01:41]}  Nc5 {[%clk 0:00:33]} 24. Qxf6+ {[%clk 0:01:33]}  Qxf6 {[%clk 0:00:31]} 25. Nxf6 {[%clk 0:01:34]}  Kxf6 {[%clk 0:00:32]} 26. bxc4 {[%clk 0:01:34]}  Nd3 {[%clk 0:00:31]} 27. Rad1 {[%clk 0:01:32]}  Ne5 {[%clk 0:00:27]} 28. Rd6+ {[%clk 0:01:27]}  Kf5 {[%clk 0:00:25]} 29. Ra6 {[%clk 0:01:23]}  Rc7 {[%clk 0:00:24]} 30. c5 {[%clk 0:01:23]}  g5 {[%clk 0:00:22]} 31. Kg2 {[%clk 0:01:18]}  Nd3 {[%clk 0:00:21]} 32. Rd1 {[%clk 0:01:15]}  Nxc5 {[%clk 0:00:18]} 33. Ra5 {[%clk 0:01:15]}  Ke6 {[%clk 0:00:16]} 34. Rc1 {[%clk 0:01:15]}  Kd6 {[%clk 0:00:16]} 35. a4 {[%clk 0:00:53]}  a6 {[%clk 0:00:15]} 36. Rcxc5 {[%clk 0:00:46]}  Rxc5 {[%clk 0:00:16]} 37. Rxa6+ {[%clk 0:00:46]}  Ke5 {[%clk 0:00:16]} 38. Rxh6 {[%clk 0:00:46]}  Ra5 {[%clk 0:00:17]} 39. Rh5 {[%clk 0:00:38]}  Kf4 {[%clk 0:00:16]} 40. Rh7 {[%clk 0:00:38]}  f6 {[%clk 0:00:15]} 41. h4 {[%clk 0:00:36]}  Rxa4 {[%clk 0:00:13]} 42. hxg5 {[%clk 0:00:37]}  Ra2+ {[%clk 0:00:13]} 43. Kh3 {[%clk 0:00:35]}  Ra1 {[%clk 0:00:13]} 44. Kg2 {[%clk 0:00:33]}  Ra2+ {[%clk 0:00:13]} 45. Kh3 {[%clk 0:00:33]}  Kxg5 {[%clk 0:00:11]} 46. Kg3 {[%clk 0:00:31]}  Ra1 {[%clk 0:00:11]} 47. Rg7+ {[%clk 0:00:28]}  Kf5 {[%clk 0:00:11]} 48. Rc7 {[%clk 0:00:29]}  Rg1+ {[%clk 0:00:11]} 49. Kf2 {[%clk 0:00:29]}  Ra1 {[%clk 0:00:11]} 50. Kg3 {[%clk 0:00:29]}  Rg1+ {[%clk 0:00:09]} 51. Kf2 {[%clk 0:00:29]}  Ra1 {[%clk 0:00:10]} 52. Rc5+ {[%clk 0:00:30]}  Kg6 {[%clk 0:00:09]} 53. Kg3 {[%clk 0:00:30]}  Ra4 {[%clk 0:00:09]} 54. f4 {[%clk 0:00:29]}  Rd4 {[%clk 0:00:09]} 55. Kg4 {[%clk 0:00:28]}  Ra4 {[%clk 0:00:09]} 56. Rc6 {[%clk 0:00:29]}  Rb4 {[%clk 0:00:10]} 57. Rc8 {[%clk 0:00:28]}  f5+ {[%clk 0:00:08]} 58. Kf3 {[%clk 0:00:28]}  Rb3+ {[%clk 0:00:08]} 59. Kf2 {[%clk 0:00:26]}  Kf6 {[%clk 0:00:09]} 60. Rc6+ {[%clk 0:00:25]}  Kf7 {[%clk 0:00:09]} 61. Rd6 {[%clk 0:00:25]}  Ke7 {[%clk 0:00:09]} 62. Ra6 {[%clk 0:00:26]}  Kf7 {[%clk 0:00:09]} 63. Rc6 {[%clk 0:00:26]}  Ke7 {[%clk 0:00:09]} 64. Ra6 {[%clk 0:00:27]}  Kf7 {[%clk 0:00:10]} 65. Rc6 {[%clk 0:00:27]}  Ke7 {[%clk 0:00:10]} 66. Ra6 {[%clk 0:00:27]} 1/2-1/2

[Event "December 19 Late 2023"]
[Site "https://www.chess.com"]
[Date "2023.12.19"]
[Round "3"]
[White "Troff, Kayden"]
[Black "Nunez V, Gustavo Eduardo"]
[Result "1-0"]
[Board "36"]
[TimeControl "180+1"]
[WhiteFideId "2047896"]
[BlackFideId "4403690"]
[WhiteElo "2544"]
[BlackElo "2167"]
[WhiteTeam "USA"]
[BlackTeam "COL"]
[WhiteClock "0:00:24"]
[BlackClock "0:00:31"]

1. d4 {[%clk 0:03:00]}  Nf6 {[%clk 0:02:57]} 2. Nf3 {[%clk 0:03:01]}  c5 {[%clk 0:02:56]} 3. dxc5 {[%clk 0:02:58]}  e6 {[%clk 0:02:56]} 4. Be3 {[%clk 0:02:58]}  Nc6 {[%clk 0:02:50]} 5. Nc3 {[%clk 0:02:37]}  Qa5 {[%clk 0:02:48]} 6. a3 {[%clk 0:02:36]}  Ne4 {[%clk 0:02:20]} 7. Qd3 {[%clk 0:02:04]}  f5 {[%clk 0:02:05]} 8. Nd2 {[%clk 0:02:00]}  Nxc5 {[%clk 0:01:25]} 9. Bxc5 {[%clk 0:01:59]}  Qxc5 {[%clk 0:01:19]} 10. e4 {[%clk 0:01:59]}  fxe4 {[%clk 0:01:13]} 11. Ndxe4 {[%clk 0:02:00]}  Qf5 {[%clk 0:01:10]} 12. Nb5 {[%clk 0:01:57]}  Kd8 {[%clk 0:01:06]} 13. O-O-O {[%clk 0:01:34]}  d5 {[%clk 0:01:05]} 14. c4 {[%clk 0:01:22]}  Ne5 {[%clk 0:01:03]} 15. Qe3 {[%clk 0:01:06]}  Bd7 {[%clk 0:00:42]} 16. cxd5 {[%clk 0:01:04]}  exd5 {[%clk 0:00:41]} 17. Rxd5 {[%clk 0:00:59]}  Rc8+ {[%clk 0:00:38]} 18. Nbc3 {[%clk 0:00:57]}  b6 {[%clk 0:00:21]} 19. Bb5 {[%clk 0:00:43]}  Nc4 {[%clk 0:00:17]} 20. Qg5+ {[%clk 0:00:33]}  Qxg5+ {[%clk 0:00:17]} 21. Nxg5 {[%clk 0:00:34]}  Nd6 {[%clk 0:00:15]} 22. Bxd7 {[%clk 0:00:19]}  Kxd7 {[%clk 0:00:16]} 23. Nf7 {[%clk 0:00:19]}  Rg8 {[%clk 0:00:17]} 24. Rhd1 {[%clk 0:00:19]}  Rc6 {[%clk 0:00:16]} 25. Ne5+ {[%clk 0:00:19]}  Kc7 {[%clk 0:00:16]} 26. Nxc6 {[%clk 0:00:20]}  Kxc6 {[%clk 0:00:16]} 27. Kb1 {[%clk 0:00:20]}  Be7 {[%clk 0:00:17]} 28. R5d3 {[%clk 0:00:20]}  g6 {[%clk 0:00:15]} 29. Nd5 {[%clk 0:00:20]}  Bf8 {[%clk 0:00:15]} 30. Nf6 {[%clk 0:00:20]}  Rg7 {[%clk 0:00:14]} 31. Rxd6+ {[%clk 0:00:21]}  Bxd6 {[%clk 0:00:14]} 32. Rxd6+ {[%clk 0:00:21]}  Kxd6 {[%clk 0:00:15]} 33. Ne8+ {[%clk 0:00:22]}  Ke5 {[%clk 0:00:15]} 34. Nxg7 {[%clk 0:00:23]}  Kd6 {[%clk 0:00:16]} 35. Ne8+ {[%clk 0:00:21]}  Ke7 {[%clk 0:00:15]} 36. Nc7 {[%clk 0:00:22]}  Kd6 {[%clk 0:00:15]} 37. Nb5+ {[%clk 0:00:22]}  Kc5 {[%clk 0:00:16]} 38. Nxa7 {[%clk 0:00:23]}  b5 {[%clk 0:00:16]} 39. b4+ {[%clk 0:00:22]}  Kb6 {[%clk 0:00:17]} 40. Nc8+ {[%clk 0:00:23]}  Kc7 {[%clk 0:00:17]} 41. Ne7 {[%clk 0:00:24]}  Kd6 {[%clk 0:00:18]} 42. Ng8 {[%clk 0:00:24]}  Ke6 {[%clk 0:00:17]} 43. Kc2 {[%clk 0:00:24]}  h5 {[%clk 0:00:18]} 44. Nh6 {[%clk 0:00:23]}  g5 {[%clk 0:00:19]} 45. g4 {[%clk 0:00:23]}  h4 {[%clk 0:00:20]} 46. Kd3 {[%clk 0:00:22]}  Ke5 {[%clk 0:00:20]} 47. Ke3 {[%clk 0:00:23]}  h3 {[%clk 0:00:21]} 48. Nf5 {[%clk 0:00:23]}  Kd5 {[%clk 0:00:21]} 49. Nd4 {[%clk 0:00:23]}  Kc4 {[%clk 0:00:22]} 50. Ke4 {[%clk 0:00:23]}  Kc3 {[%clk 0:00:23]} 51. Nxb5+ {[%clk 0:00:23]}  Kd2 {[%clk 0:00:23]} 52. f4 {[%clk 0:00:23]}  Ke1 {[%clk 0:00:24]} 53. fxg5 {[%clk 0:00:23]}  Kf2 {[%clk 0:00:25]} 54. g6 {[%clk 0:00:23]}  Kg1 {[%clk 0:00:26]} 55. g7 {[%clk 0:00:24]}  Kxh2 {[%clk 0:00:27]} 56. g8=Q {[%clk 0:00:25]}  Kg2 {[%clk 0:00:27]} 57. Qh7 {[%clk 0:00:25]}  h2 {[%clk 0:00:28]} 58. g5 {[%clk 0:00:26]}  h1=Q {[%clk 0:00:28]} 59. Qxh1+ {[%clk 0:00:26]}  Kf2 {[%clk 0:00:29]} 60. g6 {[%clk 0:00:27]}  Ke2 {[%clk 0:00:29]} 61. g7 {[%clk 0:00:27]}  Kf2 {[%clk 0:00:30]} 62. g8=Q {[%clk 0:00:27]}  Ke2 {[%clk 0:00:31]} 63. Qgg2# {[%clk 0:00:24]} 1-0

[Event "December 19 Late 2023"]
[Site "https://www.chess.com"]
[Date "2023.12.19"]
[Round "3"]
[White "Mikaelyan, Arman"]
[Black "Silvestre, Christian"]
[Result "1-0"]
[Board "38"]
[TimeControl "180+1"]
[WhiteFideId "13304852"]
[BlackFideId "30956269"]
[WhiteElo "2445"]
[BlackElo "2270"]
[WhiteTeam "ARM"]
[BlackTeam "USA"]
[WhiteClock "0:01:42"]
[BlackClock "0:00:12"]

1. d4 {[%clk 0:03:00]}  c5 {[%clk 0:02:58]} 2. d5 {[%clk 0:02:57]}  e6 {[%clk 0:02:58]} 3. Nc3 {[%clk 0:02:57]}  exd5 {[%clk 0:02:59]} 4. Nxd5 {[%clk 0:02:57]}  Nf6 {[%clk 0:02:54]} 5. Nf3 {[%clk 0:02:58]}  d6 {[%clk 0:02:50]} 6. Bg5 {[%clk 0:02:55]}  Be7 {[%clk 0:02:45]} 7. Nxe7 {[%clk 0:02:53]}  Qxe7 {[%clk 0:02:45]} 8. e3 {[%clk 0:02:53]}  h6 {[%clk 0:02:44]} 9. Bf4 {[%clk 0:02:45]}  d5 {[%clk 0:02:39]} 10. c4 {[%clk 0:02:45]}  Be6 {[%clk 0:02:34]} 11. cxd5 {[%clk 0:02:42]}  Nxd5 {[%clk 0:02:32]} 12. Bb5+ {[%clk 0:02:41]}  Nc6 {[%clk 0:02:20]} 13. Bxc6+ {[%clk 0:02:30]}  bxc6 {[%clk 0:02:16]} 14. Be5 {[%clk 0:02:31]}  O-O {[%clk 0:02:12]} 15. O-O {[%clk 0:02:31]}  Bg4 {[%clk 0:02:04]} 16. Bg3 {[%clk 0:02:31]}  Qb7 {[%clk 0:01:52]} 17. Qb3 {[%clk 0:02:18]}  Qxb3 {[%clk 0:01:24]} 18. axb3 {[%clk 0:02:19]}  Bxf3 {[%clk 0:01:16]} 19. gxf3 {[%clk 0:02:20]}  Nb4 {[%clk 0:01:12]} 20. Bd6 {[%clk 0:02:10]}  Rfd8 {[%clk 0:01:07]} 21. Bxc5 {[%clk 0:02:10]}  Nd3 {[%clk 0:01:04]} 22. Bd4 {[%clk 0:02:09]}  c5 {[%clk 0:01:01]} 23. Bc3 {[%clk 0:02:08]}  Rd6 {[%clk 0:00:58]} 24. Rfd1 {[%clk 0:02:06]}  Rg6+ {[%clk 0:00:47]} 25. Kf1 {[%clk 0:02:06]}  Nb4 {[%clk 0:00:36]} 26. Ra5 {[%clk 0:02:05]}  Rc8 {[%clk 0:00:33]} 27. Rxa7 {[%clk 0:02:04]}  Rb6 {[%clk 0:00:25]} 28. Rdd7 {[%clk 0:01:58]}  Nc6 {[%clk 0:00:24]} 29. Rab7 {[%clk 0:01:52]}  Rxb7 {[%clk 0:00:24]} 30. Rxb7 {[%clk 0:01:53]}  Rb8 {[%clk 0:00:24]} 31. Rc7 {[%clk 0:01:43]}  Rb6 {[%clk 0:00:16]} 32. Ke2 {[%clk 0:01:43]}  g6 {[%clk 0:00:12]} 33. Rc8+ {[%clk 0:01:42]} 1-0

[Event "December 19 Late 2023"]
[Site "https://www.chess.com"]
[Date "2023.12.19"]
[Round "3"]
[White "Paravyan, David"]
[Black "Chemin, Justo Reinaldo"]
[Result "1-0"]
[Board "40"]
[TimeControl "180+1"]
[WhiteFideId "4194985"]
[BlackFideId "2101580"]
[WhiteElo "2566"]
[BlackElo "1940"]
[WhiteTeam "FID"]
[BlackTeam "BRA"]
[WhiteClock "0:00:29"]
[BlackClock "0:00:00"]

1. e4 {[%clk 0:03:00]}  e6 {[%clk 0:02:59]} 2. d4 {[%clk 0:03:00]}  d5 {[%clk 0:02:59]} 3. Nc3 {[%clk 0:02:59]}  Bb4 {[%clk 0:02:54]} 4. e5 {[%clk 0:02:58]}  c5 {[%clk 0:02:53]} 5. a3 {[%clk 0:02:58]}  Bxc3+ {[%clk 0:02:54]} 6. bxc3 {[%clk 0:02:59]}  Qc7 {[%clk 0:02:54]} 7. Nf3 {[%clk 0:02:52]}  Ne7 {[%clk 0:02:48]} 8. Bd3 {[%clk 0:02:48]}  Nbc6 {[%clk 0:02:43]} 9. a4 {[%clk 0:02:46]}  c4 {[%clk 0:02:35]} 10. Be2 {[%clk 0:02:45]}  f6 {[%clk 0:02:34]} 11. O-O {[%clk 0:02:32]}  fxe5 {[%clk 0:02:30]} 12. Nxe5 {[%clk 0:02:32]}  Nxe5 {[%clk 0:02:27]} 13. dxe5 {[%clk 0:02:32]}  O-O {[%clk 0:02:16]} 14. Ba3 {[%clk 0:02:30]}  Rf7 {[%clk 0:02:10]} 15. Bd6 {[%clk 0:02:29]}  Qa5 {[%clk 0:02:07]} 16. Bb4 {[%clk 0:02:28]}  Qc7 {[%clk 0:02:06]} 17. Bh5 {[%clk 0:02:29]}  g6 {[%clk 0:02:05]} 18. Bd6 {[%clk 0:02:28]}  Qa5 {[%clk 0:02:04]} 19. Qg4 {[%clk 0:02:21]}  Bd7 {[%clk 0:01:48]} 20. Qg5 {[%clk 0:02:14]}  Nf5 {[%clk 0:01:38]} 21. Bb4 {[%clk 0:02:13]}  Qc7 {[%clk 0:01:37]} 22. Rae1 {[%clk 0:02:11]}  Bxa4 {[%clk 0:01:29]} 23. Bxg6 {[%clk 0:01:53]}  hxg6 {[%clk 0:01:25]} 24. Qxg6+ {[%clk 0:01:54]}  Ng7 {[%clk 0:01:24]} 25. Re3 {[%clk 0:01:46]}  Rf5 {[%clk 0:01:17]} 26. Rh3 {[%clk 0:01:45]}  Bxc2 {[%clk 0:01:05]} 27. Qh7+ {[%clk 0:01:44]}  Kf7 {[%clk 0:01:05]} 28. Bd6 {[%clk 0:01:32]}  Qd8 {[%clk 0:01:01]} 29. Rg3 {[%clk 0:01:31]}  Rg5 {[%clk 0:00:49]} 30. Qxc2 {[%clk 0:01:30]}  Nf5 {[%clk 0:00:44]} 31. Bc5 {[%clk 0:01:25]}  b6 {[%clk 0:00:43]} 32. Be3 {[%clk 0:01:21]}  Rh5 {[%clk 0:00:24]} 33. h3 {[%clk 0:01:13]}  Qh4 {[%clk 0:00:20]} 34. Rg4 {[%clk 0:01:11]}  Qe7 {[%clk 0:00:18]} 35. Qd2 {[%clk 0:01:04]}  Rg8 {[%clk 0:00:18]} 36. Ra1 {[%clk 0:00:53]}  Nxe3 {[%clk 0:00:10]} 37. Qxe3 {[%clk 0:00:51]}  Rxg4 {[%clk 0:00:10]} 38. hxg4 {[%clk 0:00:52]}  Rh7 {[%clk 0:00:09]} 39. f3 {[%clk 0:00:49]}  a5 {[%clk 0:00:09]} 40. Qxb6 {[%clk 0:00:49]}  Qh4 {[%clk 0:00:08]} 41. Qxa5 {[%clk 0:00:43]}  Qh1+ {[%clk 0:00:07]} 42. Kf2 {[%clk 0:00:42]}  Qh4+ {[%clk 0:00:07]} 43. Ke2 {[%clk 0:00:42]}  Qg3 {[%clk 0:00:07]} 44. Qc5 {[%clk 0:00:28]}  Qxe5+ {[%clk 0:00:07]} 45. Qe3 {[%clk 0:00:28]}  Qxe3+ {[%clk 0:00:06]} 46. Kxe3 {[%clk 0:00:29]}  Kf6 {[%clk 0:00:06]} 47. Kf4 {[%clk 0:00:26]}  Rb7 {[%clk 0:00:06]} 48. g5+ {[%clk 0:00:26]}  Kg6 {[%clk 0:00:05]} 49. Ra6 {[%clk 0:00:26]}  Kf7 {[%clk 0:00:04]} 50. Ke5 {[%clk 0:00:26]}  Rb3 {[%clk 0:00:04]} 51. Rxe6 {[%clk 0:00:26]}  Rxc3 {[%clk 0:00:04]} 52. Rf6+ {[%clk 0:00:26]}  Kg7 {[%clk 0:00:04]} 53. Kxd5 {[%clk 0:00:27]}  Rc2 {[%clk 0:00:03]} 54. g4 {[%clk 0:00:27]}  c3 {[%clk 0:00:03]} 55. Kc4 {[%clk 0:00:28]}  Rc1 {[%clk 0:00:01]} 56. f4 {[%clk 0:00:28]}  c2 {[%clk 0:00:00]} 57. Kc3 {[%clk 0:00:29]} 1-0

[Event "December 19 Late 2023"]
[Site "https://www.chess.com"]
[Date "2023.12.19"]
[Round "3"]
[White "Bortnyk, Olexandr"]
[Black "Antunez Soler, Luis"]
[Result "1-0"]
[Board "41"]
[TimeControl "180+1"]
[WhiteFideId "14120828"]
[BlackFideId "3513335"]
[WhiteElo "2731"]
[BlackElo "2154"]
[WhiteTeam "UKR"]
[BlackTeam "CUB"]
[WhiteClock "0:01:00"]
[BlackClock "0:00:31"]

1. e4 {[%clk 0:03:00]}  e6 {[%clk 0:02:59]} 2. d4 {[%clk 0:03:00]}  d5 {[%clk 0:03:00]} 3. e5 {[%clk 0:03:01]}  c5 {[%clk 0:03:00]} 4. Nf3 {[%clk 0:03:01]}  Nc6 {[%clk 0:03:01]} 5. Bd3 {[%clk 0:03:02]}  Qb6 {[%clk 0:03:01]} 6. O-O {[%clk 0:03:01]}  cxd4 {[%clk 0:03:02]} 7. Nbd2 {[%clk 0:03:00]}  f6 {[%clk 0:03:02]} 8. Re1 {[%clk 0:03:00]}  fxe5 {[%clk 0:03:01]} 9. Nxe5 {[%clk 0:03:01]}  Nxe5 {[%clk 0:03:02]} 10. Rxe5 {[%clk 0:03:01]}  Nf6 {[%clk 0:03:02]} 11. Nf3 {[%clk 0:02:59]}  Bd6 {[%clk 0:03:02]} 12. Re1 {[%clk 0:02:50]}  O-O {[%clk 0:03:01]} 13. Ne5 {[%clk 0:02:44]}  Qc7 {[%clk 0:02:52]} 14. f4 {[%clk 0:02:23]}  Bd7 {[%clk 0:02:51]} 15. Qf3 {[%clk 0:02:21]}  Rae8 {[%clk 0:02:48]} 16. Qh3 {[%clk 0:02:19]}  Bb4 {[%clk 0:01:46]} 17. Re2 {[%clk 0:02:02]}  a6 {[%clk 0:01:45]} 18. Bd2 {[%clk 0:01:55]}  Bxd2 {[%clk 0:01:21]} 19. Rxd2 {[%clk 0:01:56]}  Bb5 {[%clk 0:01:22]} 20. Re1 {[%clk 0:01:33]}  Bxd3 {[%clk 0:01:08]} 21. cxd3 {[%clk 0:01:27]}  g6 {[%clk 0:01:06]} 22. g3 {[%clk 0:01:24]}  Qd6 {[%clk 0:00:45]} 23. Rde2 {[%clk 0:01:23]}  Nh5 {[%clk 0:00:45]} 24. Nf3 {[%clk 0:01:08]}  Ng7 {[%clk 0:00:44]} 25. Ng5 {[%clk 0:01:02]}  h6 {[%clk 0:00:31]} 26. Qxh6 {[%clk 0:01:00]} 1-0

[Event "December 19 Late 2023"]
[Site "https://www.chess.com"]
[Date "2023.12.19"]
[Round "3"]
[White "Grigoriants, Sergey"]
[Black "Rodriguez Fontecha, Marcos"]
[Result "1-0"]
[Board "42"]
[TimeControl "180+1"]
[WhiteFideId "4130804"]
[BlackFideId "2256576"]
[WhiteElo "2532"]
[BlackElo "2249"]
[WhiteTeam "HUN"]
[BlackTeam "ESP"]
[WhiteClock "0:00:08"]
[BlackClock "0:00:00"]

1. d4 {[%clk 0:02:55]}  d5 {[%clk 0:02:58]} 2. c4 {[%clk 0:02:55]}  Nc6 {[%clk 0:02:58]} 3. Nf3 {[%clk 0:02:54]}  e5 {[%clk 0:02:58]} 4. dxe5 {[%clk 0:02:46]}  Bb4+ {[%clk 0:02:58]} 5. Bd2 {[%clk 0:02:44]}  dxc4 {[%clk 0:02:59]} 6. e3 {[%clk 0:02:42]}  Be6 {[%clk 0:02:53]} 7. Qa4 {[%clk 0:02:39]}  Bxd2+ {[%clk 0:02:53]} 8. Nbxd2 {[%clk 0:02:38]}  a6 {[%clk 0:02:47]} 9. Nd4 {[%clk 0:02:21]}  b5 {[%clk 0:02:35]} 10. Nxc6 {[%clk 0:02:20]}  Qd7 {[%clk 0:02:29]} 11. Qc2 {[%clk 0:01:33]}  Qxc6 {[%clk 0:02:27]} 12. Be2 {[%clk 0:01:33]}  Ne7 {[%clk 0:02:16]} 13. O-O {[%clk 0:01:26]}  O-O {[%clk 0:02:16]} 14. Nf3 {[%clk 0:01:18]}  Bf5 {[%clk 0:02:06]} 15. Qc3 {[%clk 0:01:14]}  Be4 {[%clk 0:02:04]} 16. Nd4 {[%clk 0:01:13]}  Qc5 {[%clk 0:02:02]} 17. b3 {[%clk 0:00:50]}  Nd5 {[%clk 0:01:39]} 18. Qa5 {[%clk 0:00:50]}  c3 {[%clk 0:01:32]} 19. Rac1 {[%clk 0:00:49]}  Bg6 {[%clk 0:01:18]} 20. Bf3 {[%clk 0:00:46]}  Rad8 {[%clk 0:01:13]} 21. Bxd5 {[%clk 0:00:45]}  Qxd5 {[%clk 0:01:07]} 22. Qxc3 {[%clk 0:00:44]}  Qxe5 {[%clk 0:00:52]} 23. Qxc7 {[%clk 0:00:44]}  Qg5 {[%clk 0:00:52]} 24. Rc5 {[%clk 0:00:40]}  Qf6 {[%clk 0:00:48]} 25. Rfc1 {[%clk 0:00:39]}  Be4 {[%clk 0:00:47]} 26. Qe5 {[%clk 0:00:33]}  Qg6 {[%clk 0:00:44]} 27. Qg3 {[%clk 0:00:28]}  Qb6 {[%clk 0:00:32]} 28. Rg5 {[%clk 0:00:24]}  Bg6 {[%clk 0:00:29]} 29. h4 {[%clk 0:00:23]}  h6 {[%clk 0:00:24]} 30. Rgc5 {[%clk 0:00:20]}  Qf6 {[%clk 0:00:22]} 31. Rc6 {[%clk 0:00:18]}  Qe7 {[%clk 0:00:14]} 32. Rxa6 {[%clk 0:00:18]}  Rc8 {[%clk 0:00:14]} 33. Rac6 {[%clk 0:00:18]}  Rxc6 {[%clk 0:00:14]} 34. Rxc6 {[%clk 0:00:19]}  b4 {[%clk 0:00:13]} 35. Qg4 {[%clk 0:00:17]}  Ra8 {[%clk 0:00:12]} 36. Rc8+ {[%clk 0:00:16]}  Rxc8 {[%clk 0:00:12]} 37. Qxc8+ {[%clk 0:00:17]}  Kh7 {[%clk 0:00:13]} 38. Qg4 {[%clk 0:00:18]}  Qe5 {[%clk 0:00:12]} 39. Qf4 {[%clk 0:00:15]}  Qc5 {[%clk 0:00:11]} 40. g4 {[%clk 0:00:14]}  Bd3 {[%clk 0:00:05]} 41. h5 {[%clk 0:00:10]}  Qc1+ {[%clk 0:00:06]} 42. Kh2 {[%clk 0:00:10]}  Qf1 {[%clk 0:00:05]} 43. Nf5 {[%clk 0:00:06]}  Bxf5 {[%clk 0:00:03]} 44. Qxf5+ {[%clk 0:00:06]}  Kg8 {[%clk 0:00:03]} 45. Qf3 {[%clk 0:00:06]}  Qa1 {[%clk 0:00:03]} 46. Qa8+ {[%clk 0:00:05]}  Kh7 {[%clk 0:00:04]} 47. Qe4+ {[%clk 0:00:06]}  Kg8 {[%clk 0:00:04]} 48. Qxb4 {[%clk 0:00:07]}  Qxa2 {[%clk 0:00:04]} 49. Kg3 {[%clk 0:00:07]}  Qc2 {[%clk 0:00:03]} 50. Qb8+ {[%clk 0:00:07]}  Kh7 {[%clk 0:00:00]} 51. Qb7 {[%clk 0:00:08]} 1-0

[Event "December 19 Late 2023"]
[Site "https://www.chess.com"]
[Date "2023.12.19"]
[Round "3"]
[White "Chigaev, Maksim"]
[Black "Colas, Joshua"]
[Result "1-0"]
[Board "43"]
[TimeControl "180+1"]
[WhiteFideId "4108116"]
[BlackFideId "2044447"]
[WhiteElo "2561"]
[BlackElo "2347"]
[WhiteTeam "ESP"]
[BlackTeam "USA"]
[WhiteClock "0:00:47"]
[BlackClock "0:00:02"]

1. e4 {[%clk 0:03:00]}  d5 {[%clk 0:02:53]} 2. exd5 {[%clk 0:03:00]}  Qxd5 {[%clk 0:02:53]} 3. Nc3 {[%clk 0:03:00]}  Qd6 {[%clk 0:02:45]} 4. d4 {[%clk 0:02:59]}  c6 {[%clk 0:02:42]} 5. Nf3 {[%clk 0:02:58]}  Nf6 {[%clk 0:02:43]} 6. Ne5 {[%clk 0:02:53]}  Nbd7 {[%clk 0:02:33]} 7. Nc4 {[%clk 0:02:52]}  Qc7 {[%clk 0:02:30]} 8. Qf3 {[%clk 0:02:52]}  Nb6 {[%clk 0:02:28]} 9. Bf4 {[%clk 0:02:51]}  Qd8 {[%clk 0:02:28]} 10. Be5 {[%clk 0:02:36]}  Be6 {[%clk 0:02:25]} 11. Ne3 {[%clk 0:02:28]}  g6 {[%clk 0:02:12]} 12. O-O-O {[%clk 0:02:25]}  Bg7 {[%clk 0:02:12]} 13. h4 {[%clk 0:02:23]}  h5 {[%clk 0:02:10]} 14. Kb1 {[%clk 0:02:20]}  O-O {[%clk 0:02:09]} 15. Bd3 {[%clk 0:02:20]}  Nbd5 {[%clk 0:02:08]} 16. Ncxd5 {[%clk 0:02:19]}  Nxd5 {[%clk 0:02:07]} 17. Bxg7 {[%clk 0:02:12]}  Kxg7 {[%clk 0:02:06]} 18. c4 {[%clk 0:02:12]}  Nxe3 {[%clk 0:01:59]} 19. Qxe3 {[%clk 0:02:12]}  Qa5 {[%clk 0:01:57]} 20. d5 {[%clk 0:01:58]}  cxd5 {[%clk 0:01:56]} 21. Qe5+ {[%clk 0:01:58]}  Kh6 {[%clk 0:01:40]} 22. Bxg6 {[%clk 0:01:38]}  fxg6 {[%clk 0:01:17]} 23. Qxe6 {[%clk 0:01:38]}  dxc4 {[%clk 0:01:16]} 24. Rd5 {[%clk 0:01:12]}  Qb6 {[%clk 0:01:09]} 25. Qxe7 {[%clk 0:00:58]}  Qxf2 {[%clk 0:00:43]} 26. g4 {[%clk 0:00:54]}  hxg4 {[%clk 0:00:11]} 27. h5 {[%clk 0:00:50]}  Qf3 {[%clk 0:00:03]} 28. Qg5+ {[%clk 0:00:49]}  Kg7 {[%clk 0:00:03]} 29. Qxg6+ {[%clk 0:00:50]}  Kh8 {[%clk 0:00:02]} 30. Qh6+ {[%clk 0:00:47]}  Kg8 {[%clk 0:00:03]} 31. Rg5+ {[%clk 0:00:46]}  Kf7 {[%clk 0:00:03]} 32. Qg7+ {[%clk 0:00:44]}  Ke6 {[%clk 0:00:02]} 33. Re5+ {[%clk 0:00:45]}  Kd6 {[%clk 0:00:02]} 34. Qe7+ {[%clk 0:00:46]}  Kc6 {[%clk 0:00:03]} 35. Qc5+ {[%clk 0:00:45]}  Kd7 {[%clk 0:00:01]} 36. Re7+ {[%clk 0:00:46]}  Kd8 {[%clk 0:00:02]} 37. Qc7# {[%clk 0:00:47]} 1-0